Workbook

Sheet Лист1
E1: Отправить данные в минэкономики
B2: Выполнение проектов/мероприятий программы развития производительных сил | C2: Выполнение проектов/мероприятий программы развития производительных сил | D2: Выполнение проектов/мероприятий программы развития производительных сил | E2: Выполнение проектов/мероприятий программы развития производительных сил | F2: Выполнение проектов/мероприятий программы развития производительных сил | G2: Выполнение проектов/мероприятий программы развития производительных сил | H2: Выполнение проектов/мероприятий программы развития производительных сил | I2: Выполнение проектов/мероприятий программы развития производительных сил | J2: Выполнение проектов/мероприятий программы развития производительных сил | K2: Выполнение проектов/мероприятий программы развития производительных сил | L2: Выполнение проектов/мероприятий программы развития производительных сил | M2: Выполнение проектов/мероприятий программы развития производительных сил
B3: Княгининский район | C3: Княгининский район | D3: Княгининский район | E3: Княгининский район | F3: Княгининский район | G3: Княгининский район
B4: II полугодие 2017 | C4: II полугодие 2017 | D4: II полугодие 2017 | E4: II полугодие 2017 | F4: II полугодие 2017 | G4: II полугодие 2017
B6: № | C6: Наименование предприятия/хозяйствующего субъекта (с указанием типа - крупное, среднее, малое, ИП)/наименование поселения | D6: Отрасль | E6: Наименование проекта/мероприятия | F6: Сроки реализации | G6: Ответственный орган исполнительной власти Нижегородской области | H6: Объем финансирования, млн. руб. | I6: Объем финансирования, млн. руб. | J6: Объем финансирования, млн. руб. | K6: Объем финансирования, млн. руб. | L6: Объем финансирования, млн. руб. | M6: Объем финансирования, млн. руб. | N6: Объем финансирования, млн. руб. | O6: Объем финансирования, млн. руб. | P6: Объем финансирования, млн. руб. | Q6: Объем финансирования, млн. руб. | R6: Объем финансирования, млн. руб. | S6: Объем финансирования, млн. руб. | T6: Объем финансирования, млн. руб. | U6: Объем финансирования, млн. руб. | V6: Объем финансирования, млн. руб. | W6: Объем финансирования, млн. руб. | X6: Объем финансирования, млн. руб. | Y6: Объем финансирования, млн. руб. | Z6: Объем финансирования, млн. руб. | AA6: Объем финансирования, млн. руб. | AB6: Объем финансирования, млн. руб. | AC6: Объем финансирования, млн. руб. | AD6: Объем финансирования, млн. руб. | AE6: Объем финансирования, млн. руб. | AF6: Объем финансирования, млн. руб. | AG6: Объем финансирования, млн. руб. | AH6: Объем финансирования, млн. руб. | AI6: Эффект от реализации проектов /мероприятий | AJ6: Эффект от реализации проектов /мероприятий | AK6: Эффект от реализации проектов /мероприятий | AL6: Эффект от реализации проектов /мероприятий | AM6: Эффект от реализации проектов /мероприятий | AN6: Эффект от реализации проектов /мероприятий | AO6: Эффект от реализации проектов /мероприятий | AP6: Эффект от реализации проектов /мероприятий | AQ6: Эффект от реализации проектов /мероприятий | AR6: Эффект от реализации проектов /мероприятий | AS6: Эффект от реализации проектов /мероприятий | AT6: Эффект от реализации проектов /мероприятий | AU6: Дополнительная информация о проекте/мероприятии (с указанием причин невыполнения)
B7: № | C7: Наименование предприятия/хозяйствующего субъекта (с указанием типа - крупное, среднее, малое, ИП)/наименование поселения | D7: Отрасль | E7: Наименование проекта/мероприятия | F7: Сроки реализации | G7: Ответственный орган исполнительной власти Нижегородской области | H7: Всего, в т.ч. | I7: Всего, в т.ч. | J7: Всего, в т.ч. | K7: Всего, в т.ч. | L7: Всего, в т.ч. | M7: Всего, в т.ч. | N7: Федеральный бюджет | O7: Федеральный бюджет | P7: Федеральный бюджет | Q7: Федеральный бюджет | R7: Федеральный бюджет | S7: Федеральный бюджет | T7: Областной бюджет | U7: Областной бюджет | V7: Областной бюджет | W7: Областной бюджет | X7: Областной бюджет | Y7: Областной бюджет | Z7: Местный бюджет | AA7: Местный бюджет | AB7: Местный бюджет | AC7: Местный бюджет | AD7: Местный бюджет | AE7: Местный бюджет | AF7: Частные инвестиции (собственные и привлеченные средства) | AG7: Частные инвестиции (собственные и привлеченные средства) | AH7: Частные инвестиции (собственные и привлеченные средства) | AI7: Объем отгруженной продукции (услуг), млн.руб. | AJ7: Объем отгруженной продукции (услуг), млн.руб. | AK7: Объем отгруженной продукции (услуг), млн.руб. | AL7: Объем оборота розничной торговли и общественного питания, млн. руб. | AM7: Объем оборота розничной торговли и общественного питания, млн. руб. | AN7: Объем оборота розничной торговли и общественного питания, млн. руб. | AO7: Налоговые поступления в консолидированный бюджет, млн.руб. | AP7: Налоговые поступления в консолидированный бюджет, млн.руб. | AQ7: Налоговые поступления в консолидированный бюджет, млн.руб. | AR7: Создано рабочих мест, ед. | AS7: Создано рабочих мест, ед. | AT7: Создано рабочих мест, ед. | AU7: Дополнительная информация о проекте/мероприятии (с указанием причин невыполнения)
B8: № | C8: Наименование предприятия/хозяйствующего субъекта (с указанием типа - крупное, среднее, малое, ИП)/наименование поселения | D8: Отрасль | E8: Наименование проекта/мероприятия | F8: Сроки реализации | G8: Ответственный орган исполнительной власти Нижегородской области | H8: План | I8: Профинансировано в рамках ПРПС | J8: Освоено (кассовые расходы) в рамках ПРПС | K8: % финансирования от плана | L8: % освоения средств от объема финансирования | M8: % освоения средств от плана | N8: План | O8: Профинансировано в рамках ПРПС | P8: Освоено (кассовые расходы) в рамках ПРПС | Q8: % финансирования от плана | R8: % освоения средств от объема финансирования | S8: % освоения средств от плана | T8: План | U8: Профинансировано в рамках ПРПС | V8: Освоено (кассовые расходы) в рамках ПРПС | W8: % финансирования от плана | X8: % освоения средств от объема финансирования | Y8: % освоения средств от плана | Z8: План | AA8: Профинансировано в рамках ПРПС | AB8: Освоено (кассовые расходы) в рамках ПРПС | AC8: % финансирования от плана | AD8: % освоения средств от объема финансирования | AE8: % освоения средств от плана | AF8: План | AG8: Факт | AH8: % от плана | AI8: План | AJ8: Факт | AK8: % от плана | AL8: План | AM8: Факт | AN8: % от плана | AO8: План | AP8: Факт | AQ8: % от плана | AR8: План | AS8: Факт | AT8: % от плана | AU8: Дополнительная информация о проекте/мероприятии (с указанием причин невыполнения)
B9: Промышленность | C9: Промышленность | D9: Промышленность | E9: Промышленность | F9: Промышленность | G9: Промышленность | H9: Промышленность | I9: Промышленность | J9: Промышленность | K9: Промышленность | L9: Промышленность | M9: Промышленность | N9: Промышленность | O9: Промышленность | P9: Промышленность | Q9: Промышленность | R9: Промышленность | S9: Промышленность | T9: Промышленность | U9: Промышленность | V9: Промышленность | W9: Промышленность | X9: Промышленность | Y9: Промышленность | Z9: Промышленность | AA9: Промышленность | AB9: Промышленность | AC9: Промышленность | AD9: Промышленность | AE9: Промышленность | AF9: Промышленность | AG9: Промышленность | AH9: Промышленность | AI9: Промышленность | AJ9: Промышленность | AK9: Промышленность | AL9: Промышленность | AM9: Промышленность | AN9: Промышленность | AO9: Промышленность | AP9: Промышленность | AQ9: Промышленность | AR9: Промышленность | AS9: Промышленность | AT9: Промышленность | AU9: Промышленность
B10: 10.86 | C10: ГБОУ ВО "Нижегородский государственный инженерно-экономический университет" / Среднее / | D10: Строительство | E10: Реконструкция учебно-лабораторного корпуса №3 по адресу: г.Княгинино, ул.Октябрьская, д.22а | F10: 2018 - 2018 | G10: Администрация муниципального района (городского округа) | H10: 0 | AF10: 0
B11: 2.259 | C11: ОАО "Княгининское молоко" / Крупное / | D11: Пищевая промышленность | E11: Модернизация головного предприятия ОАО "Княгининское молоко" | F11: 2010 - 2019 | G11: Министерство сельского хозяйства и продовольственных ресурсов Нижегородской области | H11: 60.12 | I11: 11.81 | J11: 60.12 | K11: 19.64404524 | L11: 509.0601185 | M11: 100 | N11: 7.94 | O11: 7.94 | P11: 7.94 | Q11: 100 | R11: 100 | S11: 100 | T11: 3.87 | U11: 3.87 | V11: 3.87 | W11: 100 | X11: 100 | Y11: 100 | AF11: 48.31 | AG11: 48.31 | AH11: 100 | AI11: 2500 | AJ11: 2594.5 | AK11: 103.78 | AO11: 45.5 | AP11: 45.5 | AQ11: 100
B12: 2.260 | C12: ООО "Крупко" / Малое / | D12: Пищевая промышленность | E12: Увеличение объёмов производства крупяных изделий | F12: 2010 - 2019 | G12: Министерство сельского хозяйства и продовольственных ресурсов Нижегородской области | H12: 0 | AF12: 0
B13: 2.261 | C13: ООО "Сервис-НН" / Малое / | D13: Пищевая промышленность | E13: Открытие производства минеральных вод и других безалкогольных напитков | F13: 2015 - 2019 | G13: Министерство сельского хозяйства и продовольственных ресурсов Нижегородской области | H13: 0 | AF13: 0
B14: 2.262 | C14: ООО "Водолей" / Малое / | D14: Пищевая промышленность | E14: Открытие производства бутилированной воды | F14: 2013 - 2019 | G14: Министерство сельского хозяйства и продовольственных ресурсов Нижегородской области | H14: 0 | AF14: 0 | AI14: 1.14 | AJ14: 1.14 | AK14: 100 | AO14: 0.3 | AP14: 0.3 | AQ14: 100
B15: 2.263 | C15: ООО "Колобок" / Малое / | D15: Пищевая промышленность | E15: Реконструкция производства на ООО "Колобок" | F15: 2016 - 2019 | G15: Министерство сельского хозяйства и продовольственных ресурсов Нижегородской области | H15: 0 | AF15: 0 | AI15: 35 | AJ15: 37.5 | AK15: 107.1 | AO15: 2.5 | AP15: 2.5 | AQ15: 100
B16: 1.730. | C16: ООО "Княгиниская ДСК" / Малое / | D16: Строительство | E16: Производство общестроительных работ по строительству автомобильных дорог, железных дорог и взлетно-посадочных полос аэродрома | F16: 2015 - 2019 | G16: Министерство промышленности, торговли и предпринимательства Нижегородской области | H16: 0 | AF16: 0 | AI16: 59 | AJ16: 40.6 | AK16: 68.8 | AO16: 2.5 | AP16: 2.5 | AQ16: 100
B17: 1.731. | C17: ИП "Емельянов" / ИП / | D17: Пищевая промышленность | E17: Открытие производства мясных полуфабрикатов | F17: 2017 - 2019 | G17: Министерство промышленности, торговли и предпринимательства Нижегородской области | H17: 1 | J17: 1 | K17: 0 | M17: 100 | AF17: 1 | AG17: 1 | AH17: 100 | AI17: 0.2 | AJ17: 0.2 | AK17: 100 | AO17: 0.02 | AP17: 0.02 | AQ17: 100 | AR17: 1 | AS17: 1 | AT17: 100
B18: Сельское хозяйство | C18: Сельское хозяйство | D18: Сельское хозяйство | E18: Сельское хозяйство | F18: Сельское хозяйство | G18: Сельское хозяйство | H18: Сельское хозяйство | I18: Сельское хозяйство | J18: Сельское хозяйство | K18: Сельское хозяйство | L18: Сельское хозяйство | M18: Сельское хозяйство | N18: Сельское хозяйство | O18: Сельское хозяйство | P18: Сельское хозяйство | Q18: Сельское хозяйство | R18: Сельское хозяйство | S18: Сельское хозяйство | T18: Сельское хозяйство | U18: Сельское хозяйство | V18: Сельское хозяйство | W18: Сельское хозяйство | X18: Сельское хозяйство | Y18: Сельское хозяйство | Z18: Сельское хозяйство | AA18: Сельское хозяйство | AB18: Сельское хозяйство | AC18: Сельское хозяйство | AD18: Сельское хозяйство | AE18: Сельское хозяйство | AF18: Сельское хозяйство | AG18: Сельское хозяйство | AH18: Сельское хозяйство | AI18: Сельское хозяйство | AJ18: Сельское хозяйство | AK18: Сельское хозяйство | AL18: Сельское хозяйство | AM18: Сельское хозяйство | AN18: Сельское хозяйство | AO18: Сельское хозяйство | AP18: Сельское хозяйство | AQ18: Сельское хозяйство | AR18: Сельское хозяйство | AS18: Сельское хозяйство | AT18: Сельское хозяйство | AU18: Сельское хозяйство
B19: 2.264 | C19: ЗАО "Покровская слобода" / Малое / | D19: Животноводство | E19: Реконструкция животноводческих комплексов на 200 голов | F19: 2010 - 2019 | G19: Министерство сельского хозяйства и продовольственных ресурсов Нижегородской области | H19: 0 | AF19: 0 | AI19: 21 | AJ19: 21 | AK19: 0 | AO19: 1.31 | AP19: 1.31 | AQ19: 0
B20: 2.265 | C20: Сельскохозяйственные предприятия и организации, КФХ / Малое / | D20: Растениеводство | E20: Приобретение энергосберегающей, высокопроизводительной техники | F20: 2010 - 2019 | G20: Министерство сельского хозяйства и продовольственных ресурсов Нижегородской области | H20: 40 | J20: 40 | K20: 0 | M20: 100 | AF20: 40 | AG20: 40 | AH20: 100 | AI20: 1.3 | AJ20: 1.3 | AK20: 100 | AO20: 0.15 | AP20: 0.15 | AQ20: 100 | AR20: 2 | AS20: 2 | AT20: 100
B21: 2.266 | C21: Сельскохозяйственные предприятия и организации, КФХ / Малое / | D21: Животноводство | E21: Приобретение племенного скота | F21: 2010 - 2019 | G21: Министерство сельского хозяйства и продовольственных ресурсов Нижегородской области | H21: 0 | AF21: 0
B22: 2.267 | C22: ЛПХ и КФХ / Малое / | D22: Сельское хозяйство | E22: Развитие ЛПХ и КФХ, льготное кредитование ЛПХ и КФХ | F22: 2010 - 2019 | G22: Министерство сельского хозяйства и продовольственных ресурсов Нижегородской области | H22: 0 | AF22: 0
B23: 2.268 | C23: КФХ "Полянская С.М., Амоян Х.О." / Малое / | D23: Сельское хозяйство | E23: Развитие семейных животноводческих ферм | F23: 2014 - 2019 | G23: Министерство сельского хозяйства и продовольственных ресурсов Нижегородской области | H23: 0 | AF23: 0 | AI23: 16.5 | AJ23: 16.5 | AK23: 100 | AO23: 0.4 | AP23: 0.4 | AQ23: 100
B24: 2.269 | C24: КФХ "Гасоян В.М." / Малое / | D24: Сельское хозяйство | E24: Развитие семейных животноводческих ферм | F24: 2014 - 2019 | G24: Министерство сельского хозяйства и продовольственных ресурсов Нижегородской области | H24: 0 | AF24: 0 | AI24: 23 | AJ24: 23 | AK24: 100 | AO24: 1.5 | AP24: 1.5 | AQ24: 100
B25: Торговля, общественное питание, платные услуги населению | C25: Торговля, общественное питание, платные услуги населению | D25: Торговля, общественное питание, платные услуги населению | E25: Торговля, общественное питание, платные услуги населению | F25: Торговля, общественное питание, платные услуги населению | G25: Торговля, общественное питание, платные услуги населению | H25: Торговля, общественное питание, платные услуги населению | I25: Торговля, общественное питание, платные услуги населению | J25: Торговля, общественное питание, платные услуги населению | K25: Торговля, общественное питание, платные услуги населению | L25: Торговля, общественное питание, платные услуги населению | M25: Торговля, общественное питание, платные услуги населению | N25: Торговля, общественное питание, платные услуги населению | O25: Торговля, общественное питание, платные услуги населению | P25: Торговля, общественное питание, платные услуги населению | Q25: Торговля, общественное питание, платные услуги населению | R25: Торговля, общественное питание, платные услуги населению | S25: Торговля, общественное питание, платные услуги населению | T25: Торговля, общественное питание, платные услуги населению | U25: Торговля, общественное питание, платные услуги населению | V25: Торговля, общественное питание, платные услуги населению | W25: Торговля, общественное питание, платные услуги населению | X25: Торговля, общественное питание, платные услуги населению | Y25: Торговля, общественное питание, платные услуги населению | Z25: Торговля, общественное питание, платные услуги населению | AA25: Торговля, общественное питание, платные услуги населению | AB25: Торговля, общественное питание, платные услуги населению | AC25: Торговля, общественное питание, платные услуги населению | AD25: Торговля, общественное питание, платные услуги населению | AE25: Торговля, общественное питание, платные услуги населению | AF25: Торговля, общественное питание, платные услуги населению | AG25: Торговля, общественное питание, платные услуги населению | AH25: Торговля, общественное питание, платные услуги населению | AI25: Торговля, общественное питание, платные услуги населению | AJ25: Торговля, общественное питание, платные услуги населению | AK25: Торговля, общественное питание, платные услуги населению | AL25: Торговля, общественное питание, платные услуги населению | AM25: Торговля, общественное питание, платные услуги населению | AN25: Торговля, общественное питание, платные услуги населению | AO25: Торговля, общественное питание, платные услуги населению | AP25: Торговля, общественное питание, платные услуги населению | AQ25: Торговля, общественное питание, платные услуги населению | AR25: Торговля, общественное питание, платные услуги населению | AS25: Торговля, общественное питание, платные услуги населению | AT25: Торговля, общественное питание, платные услуги населению | AU25: Торговля, общественное питание, платные услуги населению
B26: 10.87 | C26: Администрация Княгининского муниципального района / Среднее / | D26: Розничная торговля | E26: Строительство здания на площади "Ярмарки выходного дня" | F26: 2016 - 2019 | G26: Администрация муниципального района (городского округа) | H26: 3.267 | I26: 3.267 | J26: 3.267 | K26: 100 | L26: 100 | M26: 100 | Z26: 3.267 | AA26: 3.267 | AB26: 3.267 | AC26: 100 | AD26: 100 | AE26: 100
B27: 1.732. | C27: ЗАО "ИКС 5 Недвижимость" / Крупное / | D27: Торговля | E27: Строительство магазина "Пятерочка" | F27: 2014 - 2019 | G27: Министерство промышленности, торговли и предпринимательства Нижегородской области | H27: 0 | AF27: 0 | AL27: 84 | AM27: 84 | AN27: 100 | AO27: 0.89 | AP27: 0.89 | AQ27: 100
B28: 1.733. | C28: ООО "Магистраль" / Малое / | D28: Торговля, общественное питание | E28: Строительство гостиницы | F28: 2016 - 2019 | G28: Министерство промышленности, торговли и предпринимательства Нижегородской области | H28: 0 | AF28: 0
B29: 1.734. | C29: МУП "Княгининское ЖКХ" / Среднее / | D29: Платные услуги | E29: Строительство муниципальной бани | F29: 2014 - 2019 | G29: Министерство промышленности, торговли и предпринимательства Нижегородской области | H29: 0 | AF29: 0 | AI29: 0.6 | AJ29: 0.6 | AK29: 100 | AO29: 0.1 | AP29: 0.1 | AQ29: 100
B30: 1.735. | C30: ООО "Магистраль" / Малое / | D30: Торговля, общественное питание | E30: Реконструкция кафе 45-й км | F30: 2015 - 2019 | G30: Министерство промышленности, торговли и предпринимательства Нижегородской области | H30: 0 | AF30: 0 | AI30: 7.5 | AJ30: 7.9 | AK30: 105.3 | AL30: 5 | AM30: 5.1 | AN30: 102 | AO30: 0.2 | AP30: 0.2 | AQ30: 100
B31: 1.736. | C31: ИП "Тюльнев" / ИП / | D31: Торговля, общественное питание | E31: Реконструкция здания столовой в кафе на 90 посадочных мест | F31: 2014 - 2019 | G31: Министерство промышленности, торговли и предпринимательства Нижегородской области | H31: 0 | AF31: 0 | AL31: 1.1 | AM31: 1.1 | AN31: 100 | AO31: 0.1 | AP31: 0.1 | AQ31: 100
B32: 1.737 | C32: ИП "Звягинцев" / ИП / | D32: Торговля, общественное питание | E32: Реконструкция кафе-пицерия | F32: 2017 - 2019 | G32: Министерство промышленности, торговли и предпринимательства Нижегородской области | H32: 1 | J32: 1 | K32: 0 | M32: 100 | AF32: 1 | AG32: 1 | AH32: 100 | AL32: 0.5 | AM32: 0.5 | AN32: 100 | AO32: 0.04 | AP32: 0.04 | AQ32: 100 | AR32: 4 | AS32: 4 | AT32: 100
B33: 1.738. | C33: ИП "Водянова" / ИП / | D33: Торговля, общественное питание | E33: Открытие кафе-пицерия | F33: 2017 - 2019 | G33: Министерство промышленности, торговли и предпринимательства Нижегородской области | H33: 0.5 | J33: 0.5 | K33: 0 | M33: 100 | AF33: 0.5 | AG33: 0.5 | AH33: 100 | AL33: 0.6 | AM33: 0.6 | AN33: 100 | AO33: 0.04 | AP33: 0.04 | AQ33: 100 | AR33: 4 | AS33: 4 | AT33: 100
B34: 1.739. | C34: ИП, малые предприятия / ИП / | D34: Торговля | E34: Строительство 3-х торговых центров в г. Княгинино | F34: 2017 - 2019 | G34: Министерство промышленности, торговли и предпринимательства Нижегородской области | H34: 15 | J34: 15 | K34: 0 | M34: 100 | AF34: 15 | AG34: 15 | AH34: 100 | AO34: 0.03 | AP34: 0.03 | AQ34: 100 | AR34: 2 | AS34: 2 | AT34: 100
B35: 1.740. | C35: ИП, малые предприятия / ИП / | D35: Розничная торговля | E35: Строительство, реконструкция зданий 4-х магазинов в г.Княгинино | F35: 2016 - 2019 | G35: Министерство промышленности, торговли и предпринимательства Нижегородской области | H35: 3 | J35: 3 | K35: 0 | M35: 100 | AF35: 3 | AG35: 3 | AH35: 100 | AL35: 5.2 | AM35: 5.2 | AN35: 100 | AO35: 0.08 | AP35: 0.08 | AQ35: 100
B36: Инженерная инфраструктура | C36: Инженерная инфраструктура | D36: Инженерная инфраструктура | E36: Инженерная инфраструктура | F36: Инженерная инфраструктура | G36: Инженерная инфраструктура | H36: Инженерная инфраструктура | I36: Инженерная инфраструктура | J36: Инженерная инфраструктура | K36: Инженерная инфраструктура | L36: Инженерная инфраструктура | M36: Инженерная инфраструктура | N36: Инженерная инфраструктура | O36: Инженерная инфраструктура | P36: Инженерная инфраструктура | Q36: Инженерная инфраструктура | R36: Инженерная инфраструктура | S36: Инженерная инфраструктура | T36: Инженерная инфраструктура | U36: Инженерная инфраструктура | V36: Инженерная инфраструктура | W36: Инженерная инфраструктура | X36: Инженерная инфраструктура | Y36: Инженерная инфраструктура | Z36: Инженерная инфраструктура | AA36: Инженерная инфраструктура | AB36: Инженерная инфраструктура | AC36: Инженерная инфраструктура | AD36: Инженерная инфраструктура | AE36: Инженерная инфраструктура | AF36: Инженерная инфраструктура | AG36: Инженерная инфраструктура | AH36: Инженерная инфраструктура | AI36: Инженерная инфраструктура | AJ36: Инженерная инфраструктура | AK36: Инженерная инфраструктура | AL36: Инженерная инфраструктура | AM36: Инженерная инфраструктура | AN36: Инженерная инфраструктура | AO36: Инженерная инфраструктура | AP36: Инженерная инфраструктура | AQ36: Инженерная инфраструктура | AR36: Инженерная инфраструктура | AS36: Инженерная инфраструктура | AT36: Инженерная инфраструктура | AU36: Инженерная инфраструктура
B37: 10.83 | C37: Администрация Княгининского муниципального района / Среднее / | D37: Инженерная инфраструктура | E37: Участие проекта "Благоустройство центрального сквера в городе Княгинино" в конкурсном отборе программ (проектов) развития территорий муниципальных образований Нижегородской области, основанных на местных инициативах" | F37: 2017 - 2017 | G37: Администрация муниципального района (городского округа) | H37: 3.6 | I37: 3 | J37: 3.6 | K37: 83.33333333 | L37: 120 | M37: 100 | T37: 1.7 | U37: 1.7 | V37: 1.7 | W37: 100 | X37: 100 | Y37: 100 | Z37: 1.3 | AA37: 1.3 | AB37: 1.3 | AC37: 100 | AD37: 100 | AE37: 100 | AF37: 0.6 | AG37: 0.6 | AH37: 100
B38: 10.84 | C38: Администрация Княгининского муниципального района / Среднее / | D38: Инженерная инфраструктура | E38: Благоустройство сквера в г.Княгинино в рамках реализации проекта партии "Единая Россия" "Парки малых городов" | F38: 2017 - 2017 | G38: Администрация муниципального района (городского округа) | H38: 4.4 | I38: 4.4 | J38: 4.4 | K38: 100 | L38: 100 | M38: 100 | N38: 1.4 | O38: 1.4 | P38: 1.4 | Q38: 100 | R38: 100 | S38: 100 | T38: 1.7 | U38: 1.7 | V38: 1.7 | W38: 100 | X38: 100 | Y38: 100 | Z38: 1.3 | AA38: 1.3 | AB38: 1.3 | AC38: 100 | AD38: 100 | AE38: 100
B39: 10.87.1 | C39: Администрация Княгининского муниципального района / Среднее / | D39: Инженерная инфраструктура | E39: Формирование современной городской среды на территории города Княгинино Княгининского района Нижегородской области на 2018-2022 годы | F39: 2018 - 2018 | G39: Администрация муниципального района (городского округа) | H39: 0 | AF39: 0
B40: Транспортная инфраструктура | C40: Транспортная инфраструктура | D40: Транспортная инфраструктура | E40: Транспортная инфраструктура | F40: Транспортная инфраструктура | G40: Транспортная инфраструктура | H40: Транспортная инфраструктура | I40: Транспортная инфраструктура | J40: Транспортная инфраструктура | K40: Транспортная инфраструктура | L40: Транспортная инфраструктура | M40: Транспортная инфраструктура | N40: Транспортная инфраструктура | O40: Транспортная инфраструктура | P40: Транспортная инфраструктура | Q40: Транспортная инфраструктура | R40: Транспортная инфраструктура | S40: Транспортная инфраструктура | T40: Транспортная инфраструктура | U40: Транспортная инфраструктура | V40: Транспортная инфраструктура | W40: Транспортная инфраструктура | X40: Транспортная инфраструктура | Y40: Транспортная инфраструктура | Z40: Транспортная инфраструктура | AA40: Транспортная инфраструктура | AB40: Транспортная инфраструктура | AC40: Транспортная инфраструктура | AD40: Транспортная инфраструктура | AE40: Транспортная инфраструктура | AF40: Транспортная инфраструктура | AG40: Транспортная инфраструктура | AH40: Транспортная инфраструктура | AI40: Транспортная инфраструктура | AJ40: Транспортная инфраструктура | AK40: Транспортная инфраструктура | AL40: Транспортная инфраструктура | AM40: Транспортная инфраструктура | AN40: Транспортная инфраструктура | AO40: Транспортная инфраструктура | AP40: Транспортная инфраструктура | AQ40: Транспортная инфраструктура | AR40: Транспортная инфраструктура | AS40: Транспортная инфраструктура | AT40: Транспортная инфраструктура | AU40: Транспортная инфраструктура
B41: 3.72.1 | C41: Администрация Княгининского муниципального района / Среднее / | D41: Дорожное строительство | E41: Строительство мостового перехода через р.Степановка на автомобильной дороге (22 ОП НР 22К-0043) Лысково-Княгинино км 16+091 в Княгининском районе Нижегородской области | F41: 2018 - 2018 | G41: Министерство строительства Нижегородской области | H41: 0 | AF41: 0
B42: 10.85 | C42: Администрация Княгининского муниципального района / Среднее / | D42: Дорожное строительство | E42: Ремонт основной (центральной) ул.Октябрьская в г.Княгинино Нижегородской области | F42: 2018 - 2018 | G42: Администрация муниципального района (городского округа) | H42: 1.3 | I42: 1.3 | J42: 1.3 | K42: 100 | L42: 100 | M42: 100 | T42: 1 | U42: 1 | V42: 1 | W42: 100 | X42: 100 | Y42: 100 | Z42: 0.3 | AA42: 0.3 | AB42: 0.3 | AC42: 100 | AD42: 100 | AE42: 100
G43: Итого: | H43: =SUM(H10:H17,H19:H24,H26:H35,H37:H39,H41:H42) -> 133.187 | I43: =SUM(I10:I17,I19:I24,I26:I35,I37:I39,I41:I42) -> 23.777 | J43: =SUM(J10:J17,J19:J24,J26:J35,J37:J39,J41:J42) -> 133.187 | K43: 17.8 | L43: 560.2 | M43: 100 | N43: =SUM(N10:N17,N19:N24,N26:N35,N37:N39,N41:N42) -> 9.34 | O43: 9.34 | P43: 9.34 | Q43: 100 | R43: 100 | S43: 100 | T43: =SUM(T10:T17,T19:T24,T26:T35,T37:T39,T41:T42) -> 8.27 | U43: =SUM(U10:U17,U19:U24,U26:U35,U37:U39,U41:U42) -> 8.27 | V43: =SUM(V10:V17,V19:V24,V26:V35,V37:V39,V41:V42) -> 8.27 | W43: 100 | X43: 100 | Y43: 100 | Z43: =SUM(Z10:Z17,Z19:Z24,Z26:Z35,Z37:Z39,Z41:Z42) -> 6.167 | AA43: =SUM(AA10:AA17,AA19:AA24,AA26:AA35,AA37:AA39,AA41:AA42) -> 6.167 | AB43: =SUM(AB10:AB17,AB19:AB24,AB26:AB35,AB37:AB39,AB41:AB42) -> 6.167 | AC43: 100 | AD43: 100 | AE43: 100 | AF43: =SUM(AF10:AF17,AF19:AF24,AF26:AF35,AF37:AF39,AF41:AF42) -> 109.41 | AG43: =SUM(AG10:AG17,AG19:AG24,AG26:AG35,AG37:AG39,AG41:AG42) -> 109.41 | AH43: 100 | AI43: =SUM(AI10:AI17,AI19:AI24,AI26:AI35,AI37:AI39,AI41:AI42) -> 2665.24 | AJ43: =SUM(AJ10:AJ17,AJ19:AJ24,AJ26:AJ35,AJ37:AJ39,AJ41:AJ42) -> 2744.24 | AK43: 102.96 | AL43: =SUM(AL10:AL17,AL19:AL24,AL26:AL35,AL37:AL39,AL41:AL42) -> 96.4 | AM43: =SUM(AM10:AM17,AM19:AM24,AM26:AM35,AM37:AM39,AM41:AM42) -> 96.5 | AN43: 100.1 | AO43: =SUM(AO10:AO17,AO19:AO24,AO26:AO35,AO37:AO39,AO41:AO42) -> 55.66 | AP43: =SUM(AP10:AP17,AP19:AP24,AP26:AP35,AP37:AP39,AP41:AP42) -> 55.66 | AQ43: 100 | AR43: =SUM(AR10:AR17,AR19:AR24,AR26:AR35,AR37:AR39,AR41:AR42) -> 13 | AS43: =SUM(AS10:AS17,AS19:AS24,AS26:AS35,AS37:AS39,AS41:AS42) -> 13 | AT43: 100 | AU43: =SUM(AU10:AU17,AU19:AU24,AU26:AU35,AU37:AU39,AU41:AU42) -> 0
